fUST/lending_fUST_20241229
["ID","MTS","AMOUNT","RATE_DAILY","PERIOD"]
[347024465,1735473044591,-500.0,0.00011168,2]
[347024467,1735473044600,-500.0,0.00011168,2]
[347024469,1735473044608,-500.0,0.00011168,2]
[347024471,1735473044618,-500.0,0.00011168,2]
[347024473,1735473044627,-461.68410974,0.00011168,2]
[347024475,1735473044635,-500.0,0.00011168,2]
[347024477,1735473044644,-500.0,0.00011168,2]
[347024479,1735473044653,-500.0,0.00011168,2]
[347024481,1735473044662,-571.39,0.00011168,2]
[347024483,1735473044671,-1069.67,0.00011168,2]
[347024485,1735473044680,-500.0,0.00011168,2]
[347024487,1735473044690,-500.0,0.00011168,2]
[347024489,1735473044699,-500.0,0.00011168,2]
[347024491,1735473044708,-500.0,0.00011168,2]
[347024493,1735473044717,-500.0,0.00011168,2]
[347024495,1735473044726,-541.98,0.00011168,2]
[347024497,1735473044736,-500.0,0.00011168,2]
[347024499,1735473044745,-500.0,0.00011168,2]
[347024501,1735473044754,-500.0,0.00011168,2]
[347024503,1735473044763,-500.0,0.00011168,2]
[347024505,1735473044772,-500.0,0.00011168,2]
[347024507,1735473044782,-500.0,0.00011168,2]
[347024509,1735473044791,-1020.48,0.00011168,2]
[347024511,1735473044800,-500.0,0.00011168,2]
[347024513,1735473044809,-500.0,0.00011168,2]
[347024515,1735473044818,-500.0,0.00011168,2]
[347024517,1735473044827,-500.0,0.00011169,2]
[347024519,1735473044836,-500.0,0.00011169,2]
[347024521,1735473044845,-500.0,0.00011169,2]
[347024523,1735473044855,-500.0,0.00011169,2]
[347024525,1735473044864,-500.0,0.00011169,2]
[347024527,1735473044874,-500.0,0.00011169,2]
[347024529,1735473044883,-503.66958768,0.00011171,2]
[347024531,1735473044892,-11233.19,0.00011171,2]
[347024533,1735473044901,-500.0,0.00011171,2]
[347024535,1735473044910,-1726.35,0.00011171,2]
[347024537,1735473044919,-500.0,0.00011172,2]
[347024539,1735473044928,-500.0,0.00011172,2]
[347024541,1735473044938,-2651.8,0.00011174,2]
[347024543,1735473044947,-500.0,0.00011174,2]
[347024545,1735473044956,-2780.1,0.0001118,2]
[347024547,1735473044965,-313.327,0.00011186,2]
[347024549,1735473044974,-239.32643813,0.00011281,2]
[347024551,1735473044983,-500.0,0.00011442,2]
[347024553,1735473044992,-500.0,0.00011442,2]
[347024555,1735473045001,-500.0,0.00011442,2]
[347024557,1735473045010,-500.0,0.00011442,2]
[347024559,1735473045019,-500.0,0.00011442,2]
[347024561,1735473045028,-500.0,0.00011442,2]
[347024563,1735473045038,-500.0,0.00011442,2]
[347024565,1735473045047,-500.0,0.00011442,2]
[347024567,1735473045056,-500.0,0.00011442,2]
[347024569,1735473045066,-500.0,0.00011442,2]
[347024571,1735473045075,-571.39,0.00011442,2]
[347024573,1735473045084,-1069.67,0.00011442,2]
[347024575,1735473045093,-500.0,0.00011442,2]
[347024577,1735473045103,-500.0,0.00011442,2]
[347024579,1735473045112,-500.0,0.00011442,2]
[347024581,1735473045122,-500.0,0.00011442,2]
[347024583,1735473045131,-500.0,0.00011442,2]
[347024585,1735473045141,-541.98,0.00011442,2]
[347024587,1735473045150,-500.0,0.00011442,2]
[347024589,1735473045160,-500.0,0.00011442,2]
[347024591,1735473045169,-500.0,0.00011442,2]
[347024593,1735473045178,-500.0,0.00011442,2]
[347024595,1735473045188,-500.0,0.00011442,2]
[347024597,1735473045198,-500.0,0.00011442,2]
[347024598,1735473045208,-1020.48,0.00011442,2]
[347024601,1735473045217,-500.0,0.00011442,2]
[347024602,1735473045227,-500.0,0.00011442,2]
[347024605,1735473045237,-500.0,0.00011443,2]
[347024606,1735473045247,-500.0,0.00011443,2]
[347024609,1735473045257,-500.0,0.00011443,2]
[347024611,1735473045267,-500.0,0.00011443,2]
[347024612,1735473045277,-283.07312344,0.00011443,2]
[347024615,1735473045287,-500.0,0.00011443,2]
[347024617,1735473045296,-11233.19,0.00011445,2]
[347024618,1735473045305,-500.0,0.00011445,2]
[347024620,1735473045315,-1726.35,0.00011445,2]
[347024623,1735473045325,-500.0,0.00011446,2]
[347024625,1735473045334,-500.0,0.00011446,2]
[347024627,1735473045344,-2651.8,0.00011448,2]
[347024629,1735473045353,-500.0,0.00011448,2]
[347024631,1735473045363,-2780.1,0.00011454,2]
[347024632,1735473045372,-151.0,0.000115,2]
[347024635,1735473045382,-9958.51930916,0.00011588,2]
[347024637,1735473045391,-151.0,0.000116,2]
[347024639,1735473045401,-151.0,0.000117,2]
[347024641,1735473045410,-500.0,0.00011716,2]
[347024642,1735473045419,-549.44673543,0.00011716,2]
[347024645,1735473045429,-416.1342982,0.00011716,2]
[347024647,1735473045438,-500.0,0.00011716,2]
[347024648,1735473045447,-500.0,0.00011716,2]
[347024651,1735473045457,-500.0,0.00011716,2]
[347024652,1735473045466,-500.0,0.00011716,2]
[347024655,1735473045476,-500.0,0.00011716,2]
[347024656,1735473045485,-602.0,0.00011716,2]
[347024658,1735473045495,-500.0,0.00011716,2]
[347024661,1735473045504,-571.39,0.00011716,2]
[347024662,1735473045513,-1069.67,0.00011716,2]
[347024664,1735473045522,-500.0,0.00011716,2]
[347024667,1735473045533,-500.0,0.00011716,2]
[347024669,1735473045542,-500.0,0.00011716,2]
[347024670,1735473045551,-262.38801919,0.00011716,2]
[347024672,1735473045560,-500.0,0.00011716,2]
[347024675,1735473045572,-541.98,0.00011716,2]
[347024677,1735473045581,-500.0,0.00011716,2]
[347024679,1735473045591,-500.0,0.00011716,2]
[347024680,1735473045600,-500.0,0.00011716,2]
[347024682,1735473045609,-500.0,0.00011716,2]
[347024684,1735473045618,-500.0,0.00011716,2]
[347024686,1735473045627,-500.0,0.00011716,2]
[347024688,1735473045636,-1020.48,0.00011716,2]
[347024690,1735473045645,-500.0,0.00011716,2]
[347024692,1735473045654,-500.0,0.00011716,2]
[347024694,1735473045664,-500.0,0.00011717,2]
[347024696,1735473045673,-500.0,0.00011717,2]
[347024699,1735473045683,-500.0,0.00011717,2]
[347024700,1735473045692,-500.0,0.00011717,2]
[347024702,1735473045701,-500.0,0.00011717,2]
[347024705,1735473045711,-11233.19,0.00011719,2]
[347024707,1735473045721,-500.0,0.00011719,2]
[347024709,1735473045731,-1726.35,0.00011719,2]
[347024711,1735473045740,-500.0,0.0001172,2]
[347024713,1735473045749,-500.0,0.0001172,2]
[347024715,1735473045758,-2651.8,0.00011722,2]
[347024717,1735473045767,-500.0,0.00011722,2]
[347024719,1735473045777,-2780.1,0.00011728,2]
[347024721,1735473045786,-6101.96351348,0.000118,2]
[347024723,1735473045795,-151.0,0.000118,2]
[347024725,1735473045804,-349.4688288,0.0001188,2]
[347024727,1735473045813,-151.0,0.000119,2]
[347024729,1735473045825,-239.32643813,0.000119,2]
[347024731,1735473045834,-250.69798575,0.000119,2]
[347024732,1735473045843,-500.0,0.00011973,2]
[347024734,1735473045852,-500.0,0.0001199,2]
[347024736,1735473045862,-500.0,0.0001199,2]
[347024738,1735473045871,-500.0,0.0001199,2]
[347024741,1735473045880,-500.0,0.0001199,2]
[347024742,1735473045889,-500.0,0.0001199,2]
[347024744,1735473045899,-500.0,0.0001199,2]
[347024747,1735473045908,-500.0,0.0001199,2]
[347024749,1735473045917,-571.39,0.0001199,2]
[347024751,1735473045927,-1069.67,0.0001199,2]
[347024753,1735473045936,-500.0,0.0001199,2]
[347024755,1735473045945,-500.0,0.0001199,2]
[347024757,1735473045954,-500.0,0.0001199,2]
[347024759,1735473045963,-500.0,0.0001199,2]
[347024761,1735473045972,-541.98,0.0001199,2]
[347024763,1735473045981,-500.0,0.0001199,2]
[347024765,1735473045990,-500.0,0.0001199,2]
[347024767,1735473046000,-500.0,0.0001199,2]
[347024769,1735473046009,-500.0,0.0001199,2]
[347024771,1735473046018,-500.0,0.0001199,2]
[347024773,1735473046026,-500.0,0.0001199,2]
[347024775,1735473046035,-1020.48,0.0001199,2]
[347024776,1735473046044,-500.0,0.0001199,2]
[347024778,1735473046053,-500.0,0.0001199,2]
[347024781,1735473046063,-500.0,0.00011991,2]
[347024783,1735473046074,-500.0,0.00011991,2]
[347024785,1735473046083,-500.0,0.00011991,2]
[347024786,1735473046093,-593.16195965,0.00011991,2]
[347024789,1735473046102,-500.0,0.00011991,2]
[347024791,1735473046112,-11233.19,0.00011993,2]
[347024793,1735473046120,-500.0,0.00011993,2]
[347024795,1735473046129,-1726.35,0.00011993,2]
[347024797,1735473046138,-500.0,0.00011994,2]
[347024799,1735473046148,-500.0,0.00011994,2]
[347024800,1735473046157,-2651.8,0.00011996,2]
[347024803,1735473046167,-500.0,0.00011996,2]
[347024805,1735473046176,-151.0,0.00011999,2]
[347024807,1735473046185,-38584.38676166,0.00012,2]
[347024809,1735473046199,-2498.21043455,0.00012,2]
[347024827,1735473046362,-500.0,0.00011442,2]
[347024829,1735473046371,-3910.96717536,0.00012,2]
[347024831,1735473046383,-2685.39145609,0.00012,2]
[347024833,1735473046392,-698192.88021706,0.00012,2]
[347024861,1735473046746,-528.89,0.0001062,2]
[347024862,1735473046755,-528.89,0.00010894,2]
[347024863,1735473046764,-528.89,0.00011168,2]
[347024865,1735473046774,-528.89,0.00011442,2]
[347024867,1735473046783,-500.0,0.00011716,2]
[347024869,1735473046792,-528.89,0.00011716,2]
[347024871,1735473046801,-500.0,0.0001199,2]
[347024872,1735473046810,-528.89,0.0001199,2]
[347024874,1735473046820,-94236.85244131,0.00012,2]
[347024877,1735473046832,-976.5655516,0.00012,2]
[347024894,1735473046979,-1313.2,9.429e-05,2]
[347024896,1735473046988,-13179.08480885,0.00012,2]
[347024910,1735473047110,-594.53864315,0.00012,2]
[347025404,1735473052264,356.405938,0.00025,120]
[347025538,1735473083187,894.2495993,8.666e-05,2]
[347025540,1735473090960,160.0,0.00024079,120]
[347025541,1735473206793,8496.74933444,8.388e-05,2]
[347025542,1735473206826,10000.0,8.388e-05,2]
[347025543,1735473206858,6403.25066556,8.388e-05,2]
[347025547,1735473311570,237.1826834,0.00025,120]
[347025548,1735473444252,437.27323515,0.00013,5]
[347025550,1735473598682,-1807.0,0.000255,120]
[347025553,1735473788122,166.79556433,0.00013,5]
[347025554,1735473796898,373.4321453,0.00013,5]
[347025555,1735473936132,-300.0,9.247e-05,2]
[347025556,1735473936154,-233.476464,9.248e-05,2]
[347025557,1735473936176,-194.14660989,9.248e-05,2]
[347025558,1735473936198,-500.0,9.248e-05,2]
[347025559,1735473936220,-510.74860083,9.248e-05,2]
[347025560,1735473936241,-131.27092544,9.248e-05,2]
[347025561,1735473959097,-368.72907456,9.248e-05,2]
[347025562,1735473959123,-500.0,9.248e-05,2]
[347025563,1735473959147,-555.2517167,9.248e-05,2]
[347025564,1735473959171,-500.0,9.248e-05,2]
[347025565,1735473959195,-500.0,9.248e-05,2]
[347025566,1735473959221,-475.44271934,9.248e-05,2]
[347025568,1735474026091,-300.0,9.247e-05,2]
[347025569,1735474026113,-24.55728066,9.248e-05,2]
[347025570,1735474026135,-500.0,9.248e-05,2]
[347025571,1735474026157,-277.58954688,9.248e-05,2]
[347025572,1735474028096,-222.41045312,9.248e-05,2]
[347025573,1735474028131,-442.64369381,9.248e-05,2]
[347025574,1735474028158,-500.0,9.248e-05,2]
[347025575,1735474028181,-405.12569607,9.248e-05,2]
[347025576,1735474044108,-94.87430393,9.248e-05,2]
[347025577,1735474044130,-500.0,9.248e-05,2]
[347025578,1735474044151,-500.0,9.248e-05,2]
[347025579,1735474044172,-287.77769607,9.248e-05,2]
[347025580,1735474045104,-212.22230393,9.248e-05,2]
[347025581,1735474045126,-500.0,9.248e-05,2]
[347025582,1735474045149,-310.61055495,9.248e-05,2]
[347025583,1735474045179,-189.38944505,9.248e-05,2]
[347025584,1735474045200,-500.0,9.248e-05,2]
[347025585,1735474045223,-500.0,9.248e-05,2]
[347025586,1735474045243,-500.0,9.248e-05,2]
[347025587,1735474045264,-650.0,9.248e-05,2]
[347025588,1735474045285,-365.72296947,9.248e-05,2]
[347025589,1735474045306,-500.0,9.248e-05,2]
[347025590,1735474045328,-500.0,9.248e-05,2]
[347025591,1735474045348,-500.0,9.248e-05,2]
[347025592,1735474045371,-500.0,9.248e-05,2]
[347025593,1735474045392,-500.0,9.248e-05,2]
[347025594,1735474045413,-500.0,9.248e-05,2]
[347025595,1735474045434,-500.0,9.248e-05,2]
[347025596,1735474045454,-500.0,9.248e-05,2]
[347025597,1735474045475,-500.0,9.248e-05,2]
[347025598,1735474045495,-500.0,9.248e-05,2]
[347025599,1735474045516,-500.0,9.248e-05,2]
[347025600,1735474045537,-500.0,9.248e-05,2]
[347025601,1735474045557,-500.0,9.248e-05,2]
[347025602,1735474045578,-500.0,9.248e-05,2]
[347025603,1735474045599,-500.0,9.248e-05,2]
[347025604,1735474045620,-500.0,9.248e-05,2]
[347025605,1735474045640,-500.0,9.248e-05,2]
[347025606,1735474045662,-500.0,9.248e-05,2]
[347025607,1735474045683,-500.0,9.248e-05,2]
[347025608,1735474045705,-500.0,9.248e-05,2]
[347025609,1735474045725,-500.0,9.248e-05,2]
[347025610,1735474045746,-500.0,9.248e-05,2]
[347025611,1735474045766,-500.0,9.248e-05,2]
[347025612,1735474045786,-500.0,9.248e-05,2]
[347025613,1735474045807,-500.0,9.248e-05,2]
[347025614,1735474045828,-500.0,9.248e-05,2]
[347025615,1735474045848,-499.99999999,9.248e-05,2]
[347025616,1735474045871,-500.0,9.249e-05,2]
[347025617,1735474045893,-500.0,9.249e-05,2]
[347025618,1735474045914,-327.33363731,9.249e-05,2]
[347025646,1735474237810,-1300.0,9.064e-05,2]
[347025647,1735474237819,-1300.0,9.156e-05,2]
[347025648,1735474237829,-500.0,9.248e-05,2]
[347025649,1735474237839,-500.0,9.248e-05,2]
[347025650,1735474237848,-1284.79,9.248e-05,2]
[347025651,1735474237857,-300.0,9.248e-05,2]
[347025652,1735474237867,-522.28,9.248e-05,2]
[347025653,1735474237876,-530.19299482,9.249e-05,2]
[347025654,1735474237885,-500.0,9.249e-05,2]
[347025655,1735474237894,-500.0,9.249e-05,2]
[347025656,1735474237904,-500.0,9.249e-05,2]
[347025657,1735474237913,-500.0,9.249e-05,2]
[347025658,1735474237923,-500.0,9.249e-05,2]
[347025659,1735474237932,-500.0,9.249e-05,2]
[347025660,1735474237942,-500.0,9.249e-05,2]
[347025661,1735474237951,-500.0,9.249e-05,2]
[347025662,1735474237960,-500.0,9.249e-05,2]
[347025663,1735474237969,-500.0,9.249e-05,2]
[347025664,1735474237978,-500.0,9.249e-05,2]
[347025665,1735474237987,-502.10794084,9.249e-05,2]
[347025666,1735474237996,-500.0,9.249e-05,2]
[347025667,1735474238006,-500.0,9.249e-05,2]
[347025668,1735474238015,-500.0,9.249e-05,2]
[347025669,1735474238025,-175.85673067,9.249e-05,2]
[347025670,1735474238036,-500.0,9.249e-05,2]
[347025671,1735474238045,-500.0,9.249e-05,2]
[347025672,1735474238055,-500.0,9.249e-05,2]
[347025673,1735474238064,-500.0,9.249e-05,2]
[347025674,1735474238073,-500.0,9.249e-05,2]
[347025675,1735474238082,-632.38420102,9.249e-05,2]
[347025676,1735474238092,-500.0,9.249e-05,2]
[347025677,1735474238101,-500.0,9.249e-05,2]
[347025678,1735474238110,-503.98295423,9.249e-05,2]
[347025679,1735474238120,-500.0,9.249e-05,2]
[347025680,1735474238129,-500.0,9.249e-05,2]
[347025681,1735474238138,-14778.82,9.249e-05,2]
[347025682,1735474238148,-500.0,9.249e-05,2]
[347025683,1735474238257,-500.0,9.249e-05,2]
[347025684,1735474238267,-500.0,9.249e-05,2]
[347025685,1735474238276,-500.0,9.249e-05,2]
[347025686,1735474238286,-500.0,9.249e-05,2]
[347025687,1735474238296,-500.0,9.249e-05,2]
[347025688,1735474238305,-500.0,9.249e-05,2]
[347025689,1735474238314,-500.0,9.249e-05,2]
[347025690,1735474238324,-500.0,9.249e-05,2]
[347025691,1735474238333,-500.0,9.249e-05,2]
[347025692,1735474238342,-500.0,9.249e-05,2]
[347025693,1735474238351,-500.0,9.249e-05,2]
[347025694,1735474238361,-500.0,9.249e-05,2]
[347025695,1735474238370,-500.0,9.249e-05,2]
[347025696,1735474238379,-500.0,9.249e-05,2]
[347025697,1735474238389,-723.88,9.249e-05,2]
[347025698,1735474238398,-500.0,9.249e-05,2]
[347025699,1735474238408,-500.0,9.249e-05,2]
[347025700,1735474238417,-500.0,9.249e-05,2]
[347025701,1735474238427,-500.0,9.249e-05,2]
[347025702,1735474238437,-500.0,9.249e-05,2]
[347025703,1735474238446,-630.41,9.249e-05,2]
[347025704,1735474238455,-503.14849776,9.249e-05,2]
[347025705,1735474238464,-500.0,9.249e-05,2]
[347025706,1735474238474,-500.0,9.249e-05,2]
[347025707,1735474238483,-581.51,9.249e-05,2]
[347025708,1735474238492,-1465.98,9.249e-05,2]
[347025709,1735474238501,-500.0,9.249e-05,2]
[347025710,1735474238510,-500.0,9.249e-05,2]
[347025711,1735474238520,-500.0,9.249e-05,2]
[347025712,1735474238532,-500.0,9.249e-05,2]
[347025713,1735474238541,-233.29200516,9.249e-05,2]
[347025714,1735474238551,-500.0,9.249e-05,2]
[347025715,1735474238560,-500.0,9.249e-05,2]
[347025716,1735474238569,-500.0,9.249e-05,2]
[347025717,1735474238579,-500.0,9.249e-05,2]
[347025718,1735474238589,-500.0,9.249e-05,2]
[347025719,1735474238598,-500.0,9.249e-05,2]
[347025720,1735474238608,-500.0,9.249e-05,2]
[347025721,1735474238617,-500.0,9.249e-05,2]
[347025722,1735474238627,-500.0,9.249e-05,2]
[347025723,1735474238636,-530.06,9.249e-05,2]
[347025724,1735474238646,-500.0,9.249e-05,2]
[347025725,1735474238655,-500.0,9.249e-05,2]
[347025726,1735474238665,-500.0,9.249e-05,2]
[347025727,1735474238674,-500.0,9.249e-05,2]
[347025728,1735474238683,-500.0,9.249e-05,2]
[347025729,1735474238693,-232.9285885,9.249e-05,2]
[347025730,1735474238703,-778.47,9.249e-05,2]
[347025731,1735474238712,-500.0,9.249e-05,2]
[347025732,1735474238721,-500.0,9.249e-05,2]
[347025733,1735474238731,-500.0,9.249e-05,2]
[347025734,1735474238740,-500.0,9.249e-05,2]
[347025735,1735474238750,-500.0,9.249e-05,2]
[347025736,1735474238761,-500.0,9.249e-05,2]
[347025737,1735474238772,-507.48,9.249e-05,2]
[347025738,1735474238781,-500.0,9.249e-05,2]
[347025739,1735474238790,-500.0,9.249e-05,2]
[347025740,1735474238800,-500.0,9.249e-05,2]
[347025741,1735474238812,-500.0,9.249e-05,2]
[347025742,1735474238821,-500.0,9.249e-05,2]
[347025743,1735474238831,-500.0,9.249e-05,2]
[347025744,1735474238842,-500.0,9.249e-05,2]
[347025745,1735474238851,-500.0,9.249e-05,2]
[347025746,1735474238861,-500.0,9.249e-05,2]
[347025747,1735474238870,-500.0,9.249e-05,2]
[347025748,1735474238880,-315.88,9.249e-05,2]
[347025749,1735474238891,-500.0,9.249e-05,2]
[347025750,1735474238900,-500.0,9.249e-05,2]
[347025751,1735474238909,-596.1,9.249e-05,2]
[347025752,1735474238919,-500.0,9.249e-05,2]
[347025753,1735474238928,-320.79362068,9.25e-05,2]
[347025754,1735474238941,-201.63281508,9.25e-05,2]
[347025755,1735474238951,-500.0,9.25e-05,2]
[347025756,1735474238961,-495.31853385,9.25e-05,2]
[347025757,1735474238970,-500.58308084,9.25e-05,2]
[347025758,1735474238979,-500.0,9.25e-05,2]
[347025759,1735474238989,-500.0,9.25e-05,2]
[347025760,1735474238998,-500.0,9.25e-05,2]
[347025761,1735474239007,-500.0,9.25e-05,2]
[347025762,1735474239017,-500.0,9.25e-05,2]
[347025763,1735474239026,-500.0,9.25e-05,2]
[347025764,1735474239036,-500.0,9.25e-05,2]
[347025765,1735474239045,-500.0,9.25e-05,2]
[347025766,1735474239054,-423.38442397,9.25e-05,2]
[347025767,1735474239063,-500.0,9.25e-05,2]
[347025768,1735474239073,-500.0,9.25e-05,2]
[347025769,1735474239083,-500.0,9.25e-05,2]
[347025770,1735474239092,-500.0,9.25e-05,2]
[347025771,1735474239102,-500.0,9.25e-05,2]
[347025772,1735474239112,-500.0,9.25e-05,2]
[347025773,1735474239121,-500.0,9.25e-05,2]
[347025774,1735474239131,-500.0,9.25e-05,2]
[347025775,1735474239141,-500.0,9.25e-05,2]
[347025776,1735474239150,-500.0,9.25e-05,2]
[347025777,1735474239159,-500.0,9.25e-05,2]
[347025778,1735474239169,-500.0,9.25e-05,2]
[347025779,1735474239178,-500.0,9.25e-05,2]
[347025780,1735474239187,-500.0,9.25e-05,2]
[347025781,1735474239197,-500.0,9.25e-05,2]
[347025782,1735474239206,-500.0,9.25e-05,2]
[347025783,1735474239215,-500.0,9.25e-05,2]
[347025784,1735474239224,-500.0,9.25e-05,2]
[347025785,1735474239233,-1874.55,9.25e-05,2]
[347025786,1735474239242,-500.0,9.25e-05,2]
[347025787,1735474239251,-500.0,9.25e-05,2]
[347025788,1735474239261,-500.0,9.25e-05,2]
[347025789,1735474239270,-500.0,9.25e-05,2]
[347025790,1735474239279,-500.0,9.25e-05,2]
[347025791,1735474239290,-500.0,9.25e-05,2]
[347025792,1735474239299,-500.0,9.25e-05,2]
[347025793,1735474239309,-500.0,9.25e-05,2]
[347025794,1735474239318,-500.0,9.25e-05,2]
[347025795,1735474239328,-970.15,9.25e-05,2]
[347025796,1735474239337,-970.15,9.25e-05,2]
[347025797,1735474239347,-500.0,9.25e-05,2]
[347025798,1735474239356,-500.0,9.25e-05,2]
[347025799,1735474239364,-610.17023921,9.25e-05,2]
[347025800,1735474239373,-500.0,9.25e-05,2]
[347025801,1735474239382,-500.0,9.25e-05,2]
[347025802,1735474239391,-500.0,9.251e-05,2]
[347025803,1735474239401,-500.0,9.252e-05,2]
[347025804,1735474239410,-500.0,9.253e-05,2]
[347025805,1735474239419,-3460.74,9.253e-05,2]
[347025806,1735474239428,-500.0,9.254e-05,2]
[347025807,1735474239437,-3670.48,9.254e-05,2]
[347025808,1735474239446,-500.0,9.522e-05,2]
[347025809,1735474239456,-1284.79,9.522e-05,2]
[347025810,1735474239465,-522.28,9.522e-05,2]
[347025811,1735474239474,-500.0,9.523e-05,2]
[347025812,1735474239483,-500.0,9.523e-05,2]
[347025813,1735474239493,-500.0,9.523e-05,2]
[347025814,1735474239502,-500.0,9.523e-05,2]
[347025815,1735474239512,-500.0,9.523e-05,2]
[347025816,1735474239521,-500.0,9.523e-05,2]
[347025817,1735474239530,-500.0,9.523e-05,2]
[347025818,1735474239539,-561.21,9.523e-05,2]
[347025819,1735474239548,-500.0,9.523e-05,2]
[347025820,1735474239558,-500.0,9.523e-05,2]
[347025821,1735474239567,-511.73,9.523e-05,2]
[347025822,1735474239576,-500.0,9.523e-05,2]
[347025824,1735474239585,-500.0,9.523e-05,2]
[347025825,1735474239595,-500.0,9.523e-05,2]
[347025826,1735474239605,-500.0,9.523e-05,2]
[347025827,1735474239614,-500.0,9.523e-05,2]
[347025828,1735474239623,-500.0,9.523e-05,2]
[347025829,1735474239632,-500.0,9.523e-05,2]
[347025831,1735474239641,-14778.82,9.523e-05,2]
[347025832,1735474239650,-500.0,9.523e-05,2]
[347025834,1735474239660,-500.0,9.523e-05,2]
[347025836,1735474239669,-500.0,9.523e-05,2]
[347025837,1735474239679,-500.0,9.523e-05,2]
[347025839,1735474239688,-500.0,9.523e-05,2]
[347025841,1735474239698,-500.0,9.523e-05,2]
[347025842,1735474239707,-500.0,9.523e-05,2]
[347025843,1735474239716,-500.0,9.523e-05,2]
[347025844,1735474239725,-530.6003071,9.523e-05,2]
[347025845,1735474239734,-500.0,9.523e-05,2]
[347025846,1735474239744,-723.88,9.523e-05,2]
[347025847,1735474239755,-500.0,9.523e-05,2]
[347025849,1735474239767,-500.0,9.523e-05,2]
[347025850,1735474239776,-500.0,9.523e-05,2]
[347025852,1735474239785,-630.41,9.523e-05,2]
[347025853,1735474239794,-500.0,9.523e-05,2]
[347025855,1735474239804,-581.51,9.523e-05,2]
[347025856,1735474239815,-500.0,9.523e-05,2]
[347025857,1735474239824,-1465.98,9.523e-05,2]
[347025859,1735474239834,-987.39105527,9.523e-05,2]
[347025860,1735474239842,-500.0,9.523e-05,2]
[347025861,1735474239852,-504.84265271,9.523e-05,2]
[347025862,1735474239862,-500.0,9.523e-05,2]
[347025863,1735474239871,-500.0,9.523e-05,2]
[347025864,1735474239880,-500.0,9.523e-05,2]
[347025865,1735474239889,-500.0,9.523e-05,2]
[347025866,1735474239899,-567.97,9.523e-05,2]
[347025867,1735474239908,-500.0,9.523e-05,2]
[347025868,1735474239917,-500.0,9.523e-05,2]
[347025869,1735474239926,-530.06,9.523e-05,2]
[347025870,1735474239935,-500.0,9.523e-05,2]
[347025871,1735474239945,-500.0,9.523e-05,2]
[347025872,1735474239954,-500.0,9.523e-05,2]
[347025873,1735474239963,-500.0,9.523e-05,2]
[347025874,1735474239972,-778.47,9.523e-05,2]
[347025875,1735474239982,-500.0,9.523e-05,2]
[347025876,1735474239991,-500.0,9.523e-05,2]
[347025877,1735474240000,-500.0,9.523e-05,2]
[347025878,1735474240009,-645.80862824,9.523e-05,2]
[347025879,1735474240018,-507.48,9.523e-05,2]
[347025880,1735474240027,-500.0,9.523e-05,2]
[347025881,1735474240037,-500.0,9.523e-05,2]
[347025882,1735474240047,-500.0,9.523e-05,2]
[347025883,1735474240058,-500.0,9.523e-05,2]
[347025884,1735474240067,-500.0,9.523e-05,2]
[347025885,1735474240076,-500.0,9.523e-05,2]
[347025886,1735474240085,-500.0,9.523e-05,2]
[347025887,1735474240095,-500.0,9.523e-05,2]
[347025888,1735474240105,-500.0,9.523e-05,2]
[347025889,1735474240114,-500.0,9.523e-05,2]
[347025890,1735474240123,-596.1,9.523e-05,2]
[347025891,1735474240133,-500.0,9.523e-05,2]